bitfinex/quotes_ETHUSD_20241122
["timestamp","ask_amount","ask_price","bid_price","bid_amount"]
[1732272039908,0.58753587,3330.8,3329.6,0.2993]
[1732272039909,1.1751,3330.5,3329.6,0.2993]
[1732272040547,1.1751,3330.5,3328.4,6.00043192]
[1732272040548,1.1751,3330.5,3328.5,0.2993]
[1732272040748,1.1751,3330.5,3328.7,0.2993]
[1732272040934,0.03753693,3330.4,3328.7,0.2993]
[1732272042019,0.03753693,3330.4,3328.6,0.55]
[1732272042020,1.1521,3330.3,3328.6,0.2993]
[1732272042322,0.03753778,3330.2,3328.8,0.2993]
[1732272042530,1.1521,3330.3,3328.8,0.2993]
[1732272045639,1.1521,3330.3,3328.7,0.355]
[1732272045640,1.1521,3330.3,3329.0,0.2993]
[1732272046251,1.1521,3330.3,3329.2,0.2993]
[1732272049445,0.03753487,3330.2,3329.2,0.2993]
[1732272049971,1.1521,3330.3,3329.2,0.2993]
[1732272050634,1.1521,3330.3,3329.2,3.2993]
[1732272050946,1.1521,3330.3,3329.4,0.2993]
[1732272052731,1.1521,3330.3,3329.2,0.2993]
[1732272053172,3.28521842,3330.6,3327.2,1.25406199]
[1732272053173,1.1425,3329.9,3329.0,0.2993]
[1732272053378,1.18004445,3329.9,3329.0,0.2993]
[1732272053874,1.1425,3329.9,3329.0,0.2993]
[1732272054167,1.1425,3329.9,3328.7,0.66426315]
[1732272054168,1.1425,3329.9,3328.8,0.2993]
[1732272054772,1.11366887,3330.5,3329.0,0.2993]
[1732272054977,1.44594491,3330.5,3329.0,0.2993]
[1732272055179,1.11366887,3330.5,3329.0,0.2993]
[1732272055912,1.11366887,3330.5,3329.2,0.2993]
[1732272056273,0.03753559,3330.4,3329.2,0.2993]
[1732272056986,0.0375356,3330.4,3329.2,0.2993]
[1732272057389,1.1735,3330.3,3329.2,0.2993]
[1732272057709,0.03754067,3330.2,3329.2,0.2993]
[1732272057907,1.1267,3330.1,3328.5,0.2993]
[1732272058110,0.03754382,3330.0,3328.5,0.92782184]
[1732272058417,1.1267,3330.1,3328.8,0.2993]
[1732272059388,1.1267,3330.1,3328.9,0.2993]
[1732272060002,1.1267,3330.1,3329.1,0.2993]
[1732272061655,1.1267,3330.1,3328.5,0.2993]
[1732272061846,1.1335,3329.9,3328.5,0.2993]
[1732272062002,6.28804842,3330.2,3328.5,0.2993]
[1732272062003,0.55,3329.6,3328.5,0.2993]
[1732272062208,0.55,3329.3,3328.5,0.2993]
[1732272062408,0.55,3329.0,3328.1,0.2993]
[1732272062605,1.1335,3329.1,3328.2,0.2993]
[1732272063736,1.1335,3329.1,3327.8,0.2993]
[1732272063895,1.1335,3329.1,3328.1,1.3879]
[1732272064093,3.28521842,3330.0,3328.1,4.3879]
[1732272064094,0.03754983,3329.9,3328.1,4.3879]
[1732272064403,3.28521842,3330.0,3327.6,0.65181276]
[1732272064404,1.167,3329.8,3328.5,3.2993]
[1732272065449,0.03754268,3329.7,3328.5,3.2993]
[1732272065813,1.167,3329.8,3328.5,3.94026881]
[1732272066038,1.167,3329.8,3328.7,0.2993]
[1732272066210,0.03754269,3329.7,3328.7,0.2993]
[1732272066545,1.167,3329.8,3328.7,0.2993]
[1732272067039,1.167,3329.8,3328.5,0.2993]
[1732272071116,1.15824551,3329.8,3328.5,0.2993]
[1732272071933,1.15824551,3329.8,3328.5,0.96425856]
[1732272072139,1.15824551,3329.8,3328.7,0.2993]
[1732272072336,1.15824551,3329.8,3328.9,0.2993]
[1732272073350,1.58011293,3330.1,3328.9,0.2993]
[1732272073522,0.31280478,3330.5,3329.3,0.2993]
[1732272073523,1.0943,3330.2,3329.3,0.2993]
[1732272073723,1.0943,3330.2,3329.2,3.28521842]
[1732272073724,1.40710478,3330.5,3329.5,0.2993]
[1732272074042,1.0943,3330.5,3329.5,0.2993]
[1732272075351,1.0943,3330.5,3329.5,1.3974]
[1732272075549,1.0943,3330.5,3329.7,0.2993]
[1732272076069,1.0943,3330.5,3329.7,3.2993]
[1732272076233,1.0943,3330.5,3329.7,0.2993]
[1732272077074,1.0943,3330.5,3329.5,0.2993]
[1732272077227,1.0943,3330.5,3329.7,0.2993]
[1732272078025,3.28521842,3330.9,3329.7,0.2993]
[1732272078260,1.0706,3330.7,3329.8,0.2993]
[1732272078643,1.0638,3330.5,3329.8,0.2993]
[1732272078966,1.0638,3330.4,3329.8,0.2993]
[1732272079123,1.0638,3330.4,3329.1,0.2993]
[1732272082877,1.0638,3330.4,3329.0,0.2993]
[1732272083189,1.12263632,3330.3,3329.6,0.2993]
[1732272084215,1.12263632,3330.3,3328.8,3.0]
[1732272084216,1.12263632,3330.3,3328.9,0.2993]
[1732272084386,1.0851,3330.3,3328.9,0.92782184]
[1732272084885,1.0851,3330.3,3329.1,0.2993]
[1732272086550,1.0878,3330.1,3329.1,0.2993]
[1732272087500,1.0878,3330.1,3329.1,0.95483329]
[1732272087844,1.0691,3329.9,3329.0,0.2993]
[1732272088054,0.19545489,3330.6,3329.0,0.2993]
[1732272088055,1.10663933,3329.8,3329.0,0.2993]
[1732272088980,1.10663933,3329.8,3328.2,0.2993]
[1732272089302,1.0691,3329.8,3328.2,0.2993]
[1732272089505,0.03754677,3329.7,3328.2,0.2993]
[1732272089657,1.1137,3329.6,3328.2,0.2993]
[1732272091887,1.1137,3329.6,3328.4,3.2993]
[1732272094302,1.1137,3329.6,3328.7,3.2993]
[1732272094613,1.1137,3329.6,3328.9,0.2993]
[1732272095165,3.28521842,3331.0,3329.1,0.2993]
[1732272095522,3.28521842,3330.7,3329.3,0.2993]
[1732272095722,0.0375369,3330.6,3329.3,0.2993]
[1732272096519,0.0375369,3330.6,3328.9,0.2993]
[1732272096740,0.33227553,3330.5,3328.9,0.7101]
[1732272096896,0.03753868,3330.4,3328.9,0.7101]
[1732272097230,0.55,3330.3,3328.9,0.7101]
[1732272097392,3.28521842,3330.1,3329.0,0.2993]
[1732272097578,0.03754349,3330.0,3329.0,0.2993]
[1732272097779,0.33227619,3329.9,3329.0,0.2993]
[1732272098080,0.03754473,3329.8,3329.0,0.2993]
[1732272098324,1.1096,3329.7,3328.5,0.2993]
[1732272098619,1.14714654,3329.6,3328.5,0.2993]
[1732272099034,1.1096,3329.6,3328.5,0.2993]
[1732272099978,1.1096,3329.6,3328.7,0.2993]
[1732272100467,0.03754656,3329.5,3328.7,0.2993]
[1732272100619,1.0177,3329.4,3328.7,0.2993]
[1732272100819,1.0177,3329.4,3328.4,0.64100913]
[1732272100820,1.0177,3329.4,3328.5,0.2993]
[1732272102259,0.03754658,3329.3,3328.6,0.2993]
[1732272102465,0.32852184,3330.0,3328.6,0.2993]
[1732272102466,1.0072,3329.2,3328.6,0.2993]
[1732272103468,1.0072,3329.2,3328.1,0.2993]
[1732272105063,1.0072,3329.2,3327.8,0.2993]
[1732272105466,1.0142,3329.0,3327.8,0.2993]
[1732272105763,1.05175591,3328.9,3327.8,0.2993]
[1732272106241,1.05175591,3328.9,3327.9,0.2993]
[1732272107058,1.0142,3328.9,3327.9,0.2993]
[1732272107367,1.0142,3328.9,3327.3,3.0]
[1732272107368,1.0142,3328.9,3327.4,0.2993]
[1732272107663,1.0933,3328.7,3327.6,0.2993]
[1732272108963,0.03755923,3328.6,3327.6,0.2993]
[1732272109267,1.0906,3328.6,3327.6,0.2993]
[1732272110898,1.0906,3328.6,3328.0,3.2993]
[1732272111060,1.1112,3329.8,3328.4,0.2993]
[1732272111882,1.1201,3329.6,3328.4,0.2993]
[1732272112199,1.1201,3329.6,3328.1,0.2993]
[1732272112397,1.1201,3329.6,3328.1,0.73744184]
[1732272113464,1.1201,3329.5,3328.1,0.73744184]
[1732272114164,3.28521842,3330.0,3328.1,0.73744184]
[1732272114165,1.0362,3329.3,3328.1,4.40664283]
[1732272114368,3.0033,3329.7,3328.1,1.40664283]
[1732272114369,1.07374973,3329.2,3328.1,1.40664283]
[1732272114996,1.07374973,3329.2,3328.3,0.2993]
[1732272115705,1.0362,3329.0,3328.3,0.2993]
[1732272115904,1.0362,3329.0,3327.6,3.0]
[1732272115905,0.55,3328.9,3328.4,0.2993]
[1732272116106,1.0362,3328.8,3328.4,0.2993]
[1732272116407,0.16237553,3328.7,3328.4,0.2993]
[1732272116588,1.0575,3328.6,3328.4,0.2993]
[1732272116910,1.0575,3328.6,3327.2,0.2993]
[1732272117118,1.0575,3328.6,3327.2,3.2993]
[1732272117970,1.0575,3328.6,3328.0,0.2993]
[1732272118998,1.12895851,3328.5,3327.9,0.881876]
[1732272119270,1.12895851,3328.5,3328.0,0.2993]
[1732272120413,1.0914,3328.5,3328.0,0.2993]
[1732272124806,1.0914,3328.5,3328.0,0.29431]
[1732272125004,0.7919,3328.5,3328.0,0.29431]
[1732272126154,0.03755317,3329.8,3328.2,0.28932]
[1732272126450,0.33316418,3329.8,3328.2,0.28932]
[1732272126607,0.33316418,3329.8,3328.4,0.28932]
[1732272126807,3.32276519,3330.0,3328.4,0.28932]
[1732272128206,1.0685,3329.9,3328.4,0.28932]
[1732272128427,1.0611,3329.7,3328.4,0.28932]
[1732272128916,0.03754526,3329.6,3328.4,0.28932]
[1732272129561,1.0611,3329.7,3328.6,0.28932]
[1732272129882,1.0611,3329.7,3328.8,0.28932]
[1732272131460,6.28800842,3330.3,3328.9,0.28932]
[1732272131461,1.14074281,3329.6,3328.9,0.28932]
[1732272132066,1.1032,3329.6,3328.9,0.28932]
[1732272132486,1.1032,3329.6,3328.4,0.28932]
[1732272132683,1.1032,3329.6,3328.6,0.28932]
[1732272133767,1.1032,3329.6,3328.6,3.28932]
[1732272134375,1.1032,3329.6,3328.8,0.28932]
[1732272134579,1.0706,3330.5,3328.8,0.28932]
[1732272134803,1.0706,3330.5,3329.0,0.28932]
[1732272135302,1.0706,3330.5,3329.2,0.28932]
[1732272135512,1.0706,3330.5,3329.2,3.28932]
[1732272136464,0.03753458,3330.4,3329.3,0.28932]
[1732272136704,1.0246,3330.3,3329.3,0.28932]
[1732272136875,1.0246,3330.1,3329.3,0.28932]
[1732272137503,1.0246,3330.1,3328.9,0.28932]
[1732272137711,1.0246,3330.1,3328.9,3.46123361]
[1732272137880,0.03753988,3330.0,3328.9,3.46123361]
[1732272138364,1.0246,3330.1,3328.9,3.46123361]
[1732272138765,1.0246,3330.1,3329.3,0.28932]
[1732272139008,1.0246,3330.1,3329.5,1.32282]
[1732272140232,1.0246,3330.1,3329.5,0.28932]
[1732272141514,3.28521842,3331.6,3329.9,0.28932]
[1732272141676,1.012,3331.4,3329.9,0.28932]
[1732272142470,1.04952747,3331.3,3329.9,0.28932]
[1732272144185,1.012,3331.3,3329.9,3.28932]
[1732272144490,1.012,3331.3,3330.1,0.28932]
[1732272146470,1.012,3331.3,3330.2,1.0797]
[1732272146811,1.012,3331.3,3330.3,0.28932]
[1732272148986,1.0679,3331.1,3330.4,0.28932]
[1732272149213,1.0679,3330.9,3330.4,0.28932]
[1732272149535,0.0375328,3330.8,3330.4,0.28932]
[1732272149696,0.0375328,3330.8,3327.1,1.24406199]
[1732272149697,1.1163,3330.6,3329.1,0.64923053]
[1732272149902,1.1163,3330.4,3329.2,1.0261]
[1732272152820,1.1163,3330.4,3329.4,3.0]
[1732272154337,1.1163,3330.4,3329.5,0.55]
[1732272154484,1.0932,3330.7,3329.6,1.0905]
[1732272154691,1.0932,3330.7,3329.7,0.16405]
[1732272155415,1.0932,3330.7,3329.8,0.2993]
[1732272155807,0.03753047,3330.6,3329.8,0.2993]
[1732272156009,0.03753047,3330.6,3329.1,3.66411784]
[1732272156010,1.0932,3330.5,3329.4,0.2993]
[1732272156183,0.03753544,3330.4,3329.4,0.2993]
[1732272157024,1.0932,3330.5,3329.4,0.2993]
[1732272158801,3.28521842,3330.8,3329.2,0.2993]
[1732272158802,0.03753551,3330.4,3329.2,0.2993]
[1732272158997,1.0818,3330.3,3329.2,0.2993]
[1732272159302,1.0818,3330.5,3329.2,0.2993]
[1732272159815,1.0818,3330.4,3329.2,0.2993]
[1732272160002,1.0818,3330.4,3329.1,0.2993]
[1732272160332,1.11934003,3330.3,3329.1,0.2993]
[1732272160995,1.11934003,3330.3,3328.8,0.2993]
[1732272161199,1.0316,3330.1,3328.8,0.2993]
[1732272162222,1.0316,3330.1,3328.8,3.2993]
[1732272164033,1.0316,3330.1,3329.1,0.2993]
[1732272164188,1.0316,3330.1,3329.0,3.28521842]
[1732272164189,1.0316,3330.1,3329.3,0.2993]
[1732272165337,1.0316,3330.1,3329.0,0.2993]
[1732272165630,1.06913589,3330.1,3329.0,0.2993]
[1732272165794,1.0316,3330.1,3329.0,0.2993]
[1732272166801,0.03753726,3330.0,3329.1,0.2993]
[1732272167005,1.0219,3329.9,3329.1,0.2993]
[1732272167815,1.0219,3329.9,3328.7,0.2993]
[1732272168024,1.0219,3329.9,3328.7,0.96394107]
[1732272168326,1.0219,3329.9,3328.6,1.0668]
[1732272168327,1.0219,3329.9,3328.9,0.2993]
[1732272168712,0.03754005,3329.8,3328.9,0.2993]
[1732272168915,1.0669,3329.7,3328.9,0.2993]
[1732272169229,1.0669,3329.7,3328.7,0.2993]
[1732272169438,1.0669,3329.7,3328.7,0.47009954]
[1732272174211,3.28521842,3330.6,3328.8,0.2993]
[1732272174212,1.1046,3329.5,3328.8,0.2993]
[1732272174509,1.0793,3329.3,3328.8,0.2993]
[1732272174738,3.0,3329.7,3328.8,0.2993]
[1732272174739,1.11685224,3329.2,3328.8,0.2993]
[1732272174906,1.0793,3329.1,3328.8,0.2993]
[1732272175237,1.0793,3328.9,3328.0,0.2993]
[1732272175437,1.062,3328.7,3328.0,0.2993]
[1732272175648,1.062,3328.5,3328.0,0.2993]
[1732272176411,3.28521842,3329.0,3328.0,0.2993]
[1732272176617,1.0807,3328.8,3328.0,0.2993]
[1732272176824,1.0475,3328.6,3328.0,0.2993]
[1732272177116,1.0475,3328.4,3328.0,0.2993]
[1732272177542,0.03743613,3328.3,3328.0,0.2993]
[1732272177738,1.0475,3328.4,3328.0,0.2993]
[1732272181122,1.0115,3328.2,3328.0,0.2993]
[1732272181370,1.04893613,3328.1,3328.0,0.2993]
[1732272182355,1.0115,3328.1,3328.0,0.2993]
[1732272182870,1.0303,3328.0,3327.9,0.582106]
[1732272183157,2.10023497,3328.0,3327.9,0.582106]
[1732272183323,5.06759884,3328.0,3327.9,0.582106]
[1732272184276,5.10503497,3328.0,3327.9,0.582106]
[1732272184563,2.10023497,3328.0,3327.9,0.582106]
[1732272185558,1.06773613,3328.0,3327.9,0.582106]
[1732272186172,1.0303,3328.0,3327.9,0.582106]
[1732272186384,1.06773613,3328.0,3327.9,0.582106]
[1732272187235,1.0303,3328.0,3327.9,0.582106]
[1732272189348,7.31551842,3328.0,3327.9,0.582106]
[1732272189548,8.35128587,3328.0,3327.9,0.582106]
[1732272190373,2.06606745,3328.0,3327.9,0.582106]
[1732272190536,1.0303,3328.0,3327.9,0.582106]
[1732272191576,4.06773613,3328.0,3327.9,0.582106]
[1732272192638,1.06773613,3328.0,3327.9,0.582106]
[1732272193648,1.0303,3328.0,3327.9,0.582106]
[1732272195068,1.0303,3328.0,3327.9,0.582056]
[1732272195274,1.73754061,3328.0,3327.9,0.582056]
[1732272195954,1.0303,3328.0,3327.9,0.582056]
[1732272196457,1.06773613,3328.0,3327.9,0.582056]
[1732272197380,1.0303,3328.0,3327.9,0.582056]
[1732272197970,1.06773613,3328.0,3327.9,0.582056]
[1732272199182,1.0303,3328.0,3327.9,0.582056]
[1732272199348,1.0303,3328.0,3327.1,0.282156]
[1732272199689,1.0303,3328.0,3327.0,1.0261]
[1732272199874,1.0303,3328.0,3327.1,0.2997]
[1732272200243,0.03743613,3327.9,3327.1,0.2997]
[1732272200445,1.0303,3328.0,3327.1,0.2997]
[1732272201886,0.03743613,3327.9,3327.1,0.2997]
[1732272202061,0.03743613,3327.9,3327.2,0.2997]
[1732272202257,1.0403,3327.5,3327.2,0.2997]
[1732272202565,3.28521842,3327.6,3327.2,0.2997]
[1732272202566,1.0403,3327.3,3327.2,0.2997]
[1732272203157,1.0403,3327.3,3326.6,0.2997]
[1732272203357,0.03743613,3327.2,3326.6,0.2997]
[1732272203610,0.44574474,3327.2,3326.6,0.2997]
[1732272203791,0.03743613,3327.2,3326.6,0.2997]
[1732272204107,0.03743613,3327.2,3326.3,0.2997]
[1732272204415,1.0051,3327.1,3326.3,0.2997]
[1732272204563,0.03743613,3327.0,3326.3,0.2997]
[1732272205000,1.04253613,3327.1,3326.3,0.2997]
[1732272205208,1.04253613,3327.1,3326.4,0.2997]
[1732272205507,1.0051,3327.1,3326.4,0.2997]
[1732272206212,1.0051,3327.1,3326.5,0.2997]
[1732272206413,3.28521842,3327.6,3326.7,0.2997]
[1732272206414,1.1112,3327.4,3326.7,0.2997]
[1732272206571,1.1112,3327.7,3326.7,0.2997]
[1732272206767,1.1112,3327.7,3326.7,0.32974486]
[1732272207264,3.32265455,3328.2,3326.9,0.2997]
[1732272207265,1.1112,3328.0,3326.9,0.2997]
[1732272207465,1.55458546,3328.0,3326.9,0.2997]
[1732272207716,1.1112,3328.0,3326.9,0.2997]
[1732272208000,1.1112,3328.0,3327.0,0.03005305]
[1732272208203,1.54878607,3328.4,3327.2,0.2997]
[1732272208204,1.14863613,3328.4,3327.2,0.2997]
[1732272209320,1.59202159,3328.4,3327.2,0.2997]
[1732272210009,3.28521842,3328.2,3327.2,0.2997]
[1732272210184,0.03743613,3328.1,3327.2,0.2997]
[1732272210386,1.0532,3327.8,3327.2,0.2997]
[1732272210588,1.09063613,3327.8,3327.2,0.2997]
[1732272210782,1.0532,3327.8,3327.2,0.2997]
[1732272212681,0.03743613,3327.7,3327.2,0.2997]
[1732272212887,1.0532,3327.8,3327.2,0.2997]
[1732272214874,0.03743613,3327.7,3327.2,0.2997]
[1732272215823,1.0532,3327.8,3327.2,0.2997]
[1732272216687,0.03743613,3327.7,3327.2,0.2997]
[1732272218401,1.09063613,3327.8,3327.2,0.2997]
[1732272218596,0.03743613,3328.2,3327.2,0.2997]
[1732272220508,1.39144813,3328.7,3327.5,0.2997]
[1732272221011,1.09003613,3328.7,3327.5,0.2997]
[1732272223361,1.09003613,3328.7,3327.6,0.2997]
[1732272223550,1.09003613,3328.7,3327.6,1.3814]
[1732272224912,1.0133,3329.0,3327.8,0.2997]
[1732272225111,1.0133,3329.0,3328.0,0.2997]
[1732272225112,0.03743613,3328.9,3328.0,0.2997]
[1732272225508,4.31101842,3329.3,3328.2,0.2997]
[1732272225713,0.03743613,3329.2,3328.2,0.2997]
[1732272227144,0.03743613,3329.2,3327.7,0.2997]
[1732272227317,0.03743613,3329.2,3328.5,0.2997]
[1732272228725,1.06323613,3329.3,3328.5,0.2997]
[1732272228922,3.00399,3329.0,3327.9,0.2997]
[1732272229127,1.0942,3328.8,3327.9,0.2997]
[1732272229368,0.03743613,3328.7,3327.9,0.2997]
[1732272232544,1.07233613,3329.1,3327.6,0.2997]
[1732272232779,1.07233613,3329.1,3328.0,0.2997]
[1732272232981,1.07233613,3329.1,3328.2,0.2997]
[1732272232982,1.50809158,3329.1,3328.2,0.2997]
[1732272233842,1.50809158,3329.1,3327.5,3.31526478]
[1732272233843,0.03743613,3329.1,3328.4,0.2997]
[1732272234038,0.03743613,3329.1,3327.6,3.0]
[1732272234039,0.03743613,3329.5,3328.6,0.2997]
[1732272235142,0.03743613,3329.6,3328.6,0.2997]
[1732272236751,0.44176546,3329.5,3328.6,0.2997]
[1732272237063,0.03743613,3329.4,3328.6,0.2997]
[1732272240885,3.28521842,3329.3,3328.6,0.2997]
[1732272241091,0.03743613,3329.2,3328.6,0.2997]
[1732272241251,1.0813,3329.1,3328.6,0.2997]
[1732272241453,0.03743613,3329.0,3328.6,0.2997]
[1732272241784,1.11873613,3329.1,3328.6,0.2997]
[1732272243079,1.11873613,3329.1,3327.8,0.2997]
[1732272243259,1.11873613,3329.1,3327.3,0.03004523]
[1732272243260,1.11873613,3329.1,3328.0,0.2997]
[1732272244293,3.28521842,3328.9,3328.0,0.2997]
[1732272244592,0.03743613,3328.8,3328.0,0.2997]
[1732272244804,0.03743613,3328.8,3326.7,0.31500133]
[1732272244805,3.28521842,3328.5,3327.7,0.2997]
[1732272244956,0.03743613,3328.4,3327.7,0.2997]
[1732272246658,1.0386,3328.3,3327.7,0.2997]
[1732272246955,0.03743613,3328.2,3327.7,0.2997]
[1732272247659,0.03743613,3328.2,3327.0,0.2997]
[1732272248084,0.03743613,3328.2,3326.5,3.02971939]
[1732272248085,0.03743613,3328.2,3327.2,0.2997]
[1732272249371,0.03743613,3328.2,3326.8,0.2997]
[1732272249568,0.03743613,3328.2,3327.2,0.2997]
[1732272249896,0.03743613,3328.4,3327.4,0.2997]
[1732272250459,0.03743613,3328.4,3327.6,0.2997]
[1732272252404,1.10683613,3328.5,3327.6,0.2997]
[1732272253500,1.10683613,3328.5,3327.0,0.03005317]
[1732272253501,0.03743613,3328.5,3327.7,0.2997]
[1732272253800,0.03743613,3328.7,3327.9,0.2997]
[1732272257241,0.03743613,3328.7,3327.8,0.2997]
[1732272257534,0.03743613,3329.1,3328.0,0.2997]
[1732272257811,0.03743613,3329.1,3328.2,0.2997]
[1732272258575,1.0594,3329.2,3327.6,3.35856725]
[1732272258576,1.0594,3329.2,3328.4,0.2997]
[1732272258787,1.0282,3329.5,3328.4,0.2997]
[1732272258972,0.03743613,3329.4,3328.4,0.2997]
[1732272266143,0.9989,3329.3,3328.4,0.2997]
[1732272266429,0.9989,3329.3,3327.6,3.0]
[1732272266430,0.9989,3329.1,3328.1,0.2997]
[1732272266628,0.03743613,3329.0,3328.1,0.2997]
[1732272268415,0.03743613,3329.0,3327.5,0.63965042]
[1732272268416,0.03743613,3329.0,3328.2,0.2997]
[1732272268619,3.00418,3328.7,3328.2,0.2997]
[1732272268807,0.03743613,3328.6,3328.2,0.2997]
[1732272269445,0.03743613,3328.6,3327.9,0.2997]
[1732272269758,0.03743613,3328.7,3327.9,0.2997]
[1732272274261,0.03743613,3328.7,3328.0,0.2997]
[1732272274262,1.0908,3328.6,3328.0,0.2997]
[1732272274622,0.03743613,3328.5,3328.0,0.2997]
[1732272275327,0.03743613,3328.5,3328.1,0.2997]
[1732272276261,0.03743613,3328.5,3327.5,1.0519]
[1732272276262,0.03743613,3328.5,3327.6,0.2997]
[1732272277641,9.7084,3327.4,3327.2,0.2997]
[1732272278674,9.7084,3327.4,3326.6,0.2997]
[1732272278852,9.7084,3327.4,3326.8,0.2997]
[1732272279754,9.7084,3327.4,3326.7,0.2997]
[1732272280173,9.4087,3327.4,3326.7,0.2997]
[1732272280667,9.4087,3327.4,3326.9,0.2997]
[1732272284668,0.03743613,3327.3,3326.9,0.2997]
[1732272284871,9.4087,3327.4,3326.9,0.2997]
[1732272285068,0.03743613,3327.3,3326.9,0.2997]
[1732272285280,10.4645,3327.4,3327.0,0.2997]
[1732272285586,0.03743613,3327.3,3327.0,0.2997]
[1732272286146,1.0964,3327.2,3326.2,0.2997]
[1732272286347,0.03743613,3327.1,3326.2,0.2997]
[1732272287313,1.0094,3327.0,3326.2,0.2997]
[1732272287487,0.03743613,3326.9,3326.2,0.2997]
[1732272290282,1.0094,3327.0,3326.2,0.2997]
[1732272292187,1.0094,3327.0,3326.1,1.041]
[1732272292188,3.28521842,3326.3,3326.1,0.2997]
[1732272292368,4.58766797,3326.2,3326.1,0.2997]
[1732272292976,1.58123797,3326.2,3326.1,0.2997]
[1732272293195,1.58123797,3326.2,3324.9,0.2997]
[1732272293196,1.0949,3326.1,3324.9,0.2997]
[1732272293506,1.0949,3325.9,3324.9,0.2997]
[1732272293810,0.03743613,3325.8,3324.9,0.2997]
[1732272294470,1.13233613,3325.9,3324.9,0.2997]
[1732272296199,1.0949,3325.9,3324.9,0.2997]
[1732272296774,1.0949,3325.9,3325.0,0.03007122]
[1732272296975,1.0159,3326.5,3325.1,0.2997]
[1732272297180,0.03743613,3326.4,3325.1,0.2997]
[1732272298192,0.03743613,3326.4,3325.1,0.96712257]
[1732272298394,0.03743613,3326.4,3325.1,0.2997]
[1732272298602,1.34816546,3326.5,3325.0,1.0265]
[1732272298603,1.0159,3326.5,3325.3,0.2997]
[1732272298947,0.03743613,3326.4,3325.3,0.2997]
[1732272299407,1.0159,3326.5,3325.3,0.2997]
[1732272299818,0.03743613,3326.4,3325.3,0.2997]
[1732272299978,1.0159,3326.5,3325.3,0.2997]
[1732272300178,4.35001842,3325.8,3325.6,0.2997]
[1732272300376,0.03743613,3325.7,3325.6,0.2997]
[1732272302026,1.0936,3325.3,3323.0,1.0228]
[1732272302206,1.0157,3324.7,3323.0,1.0228]
[1732272302383,1.0157,3324.7,3323.0,1.79971739]
[1732272302384,0.03743613,3324.6,3323.0,1.79971739]
[1732272303017,1.0157,3324.4,3323.1,0.2997]
[1732272303319,4.30091842,3324.2,3323.1,0.2997]
[1732272303518,0.03743613,3324.1,3323.1,0.2997]
[1732272303881,4.30091842,3324.2,3323.1,0.2997]
[1732272304708,1.0157,3324.2,3323.1,0.2997]
[1732272305079,0.03743613,3324.1,3323.1,0.2997]
[1732272306087,0.47127159,3324.1,3323.1,0.2997]
[1732272306286,0.47127159,3324.1,3322.6,0.2997]
[1732272306287,1.0496,3324.0,3322.6,0.2997]
[1732272306522,0.03743613,3323.9,3322.6,0.2997]
[1732272307336,3.28521842,3323.5,3322.4,0.2997]
[1732272307483,1.0496,3323.3,3322.4,0.2997]
[1732272307690,0.03743613,3323.2,3322.4,0.2997]
[1732272308010,1.0496,3323.1,3322.4,0.2997]
[1732272308215,0.47466159,3323.0,3322.4,0.2997]
[1732272308413,4.28231842,3322.9,3321.7,0.2997]
[1732272308617,0.03743613,3322.8,3321.7,0.2997]
[1732272308813,0.03743613,3322.7,3321.7,0.2997]
[1732272309027,0.46941159,3322.7,3321.7,0.2997]
[1732272309319,0.46941159,3322.7,3321.5,0.2997]
[1732272309484,0.46941159,3322.7,3321.7,0.2997]
[1732272309918,0.46941159,3322.7,3321.4,1.033]
[1732272310343,0.9971,3322.6,3321.4,1.033]
[1732272310542,0.9971,3322.1,3320.7,0.1468318]
[1732272310827,0.03743613,3322.0,3320.7,0.1468318]
[1732272311447,1.03453613,3322.1,3320.7,0.1468318]
[1732272311677,0.9971,3322.1,3320.8,0.03010756]
[1732272311837,1.42907546,3322.1,3320.8,0.03010756]
[1732272312039,1.42907546,3322.1,3320.9,1.0868]
[1732272312040,0.9971,3322.1,3320.9,1.0868]
[1732272312259,0.9971,3322.1,3320.8,0.58010756]
[1732272312260,1.0712,3322.5,3321.3,0.55]
[1732272312560,1.1008,3322.9,3321.6,0.55]
[1732272312769,1.1008,3322.9,3321.8,0.55]
[1732272313068,3.28521842,3323.7,3322.1,0.55]
[1732272313069,1.1008,3323.5,3322.1,0.55]
[1732272313276,1.1008,3323.5,3322.2,0.0300936]
[1732272313434,1.1008,3323.5,3322.1,0.58009248]
[1732272313435,0.03743613,3323.4,3322.1,0.58009248]
[1732272313649,1.1008,3323.5,3322.1,0.58009248]
[1732272313873,1.1008,3323.5,3322.3,0.55]
[1732272314038,1.1008,3323.5,3322.4,0.03008976]
[1732272314735,1.1008,3323.5,3322.5,1.0652]
[1732272314930,1.0264,3323.9,3322.6,0.03008794]
[1732272315135,1.0264,3323.9,3323.3,3.0]
[1732272315376,0.03743613,3323.8,3322.6,0.03008794]
[1732272315579,0.03743613,3323.8,3323.3,3.0]
[1732272316270,0.03743613,3323.8,3322.7,0.16452879]
[1732272317035,1.0264,3323.9,3322.7,0.16452879]
[1732272317237,0.03743613,3323.8,3322.7,0.16452879]
[1732272318447,0.03743613,3323.8,3322.8,0.55]
[1732272319943,0.03743613,3323.8,3322.9,0.2997]
[1732272320149,1.0052,3323.7,3322.9,0.2997]
[1732272320458,0.03743613,3323.6,3322.9,0.2997]
[1732272321079,1.0052,3323.7,3322.2,0.2997]
[1732272321304,1.0052,3323.7,3322.2,0.48195798]
[1732272321513,0.03743613,3323.6,3322.4,0.2997]
[1732272321982,0.03743613,3323.6,3322.6,0.2997]
[1732272322812,0.03743613,3323.6,3322.5,0.2997]
[1732272323014,1.0052,3323.7,3322.5,0.2997]
[1732272323527,1.0052,3323.7,3322.6,0.02258784]
[1732272324176,1.0052,3323.7,3323.1,0.2997]
[1732272324487,1.0481,3324.5,3323.3,0.2997]
[1732272324684,1.0481,3324.5,3323.0,1.0651]